Workbook

Sheet 01_Pyro-2024
P2: Hier Filter einstellen!!!
B6: From | C6: =SUBTOTAL(105,B11:B1048576) -> 2024-10-10 | D6: to | E6: =SUBTOTAL(104,B11:B1048576) -> 2024-10-29 | G6: Summary filtered in row 10 | H6: Total N$ | J6: =SUBTOTAL(109,J10:J1048576) -> 0 | K6: =SUBTOTAL(109,K10:K1048576) -> -545314.85 | L6: = | M6: =J6+K6 -> -545314.85 | P6: =SUBTOTAL(103,O10:O1048576) -> 69 | R6: Entries
A9: Period | B9: Payment Date | C9: General ledger (G) Supplier account (C) | D9: Account name | E9: Tax Invoice number | F9: Description | G9: Explanation on the content for PKF! Could be deleted before import by accountant! | H9: Scan Name/Number with file and link to open! | I9: This column is only for checking the hyperlinks in the left cell!!! | J9: Income (+) Inclusive VAT Amount | K9: Expense (-) Inclusive VAT Amount | L9: - | M9: VAT Amount | N9: - | O9: Plant Ref. No. | P9: Contra Account From Leder | Q9: - | R9: - | S9: - | T9: - | U9: - | V9: Income + Expense Inclusive VAT Amount
V11: =J11+K11 -> 0
B12: OCT | V12: =J12+K12 -> 0
B13: 2024-10-10 | C13: C | D13: ROSI | E13: R 44 | F13: ENCR-R PRUSA-PRUSA R 44 01 0 | G13: Staff / Food Supply | H13: 241010_BMFO_546-00_Rosi Invoices R044 Pyronic carbon capture.pdf | I13: =Hyperlink_Pfad(H13) -> 03_booked\241010_BMFO_546-00_Rosi Invoices R044 Pyronic carbon capture.pdf | K13: -546 | M13: 0 | O13: 001 | P13: 4500010 | V13: =J13+K13 -> -546
B14: 2024-10-10 | E14: n.a. | F14: Transfer Fee | G14: Bank Charges | H14: n.a. | I14: =Hyperlink_Pfad(H14) ->  | K14: -9.13 | M14: 0 | O14: A | P14: 3200000 | V14: -9.13
B15: 2024-10-10 | E15: n.a. | F15: Value Added Tax | G15: Bank Charges | H15: n.a. | I15: =Hyperlink_Pfad(H15) ->  | K15: -1.37 | M15: -1.37 | O15: A | P15: 3200000 | V15: -1.37
B16: 2024-10-10 | E16: n.a. | F16: Stamp Duty | G16: Bank Charges | H16: n.a. | I16: =Hyperlink_Pfad(H16) ->  | K16: -0.2 | M16: 0 | O16: A | P16: 3200000 | V16: -0.2
B17: 2024-10-10 | C17: C | D17: KHAROS | E17: OCT-24 | K17: -20364.21 | M17: 0 | O17: A | P17: 4400000 | V17: -20364.21
B18: 2024-10-10 | E18: n.a. | K18: -9.13 | M18: 0 | O18: A | P18: 3200000 | V18: -9.13
B19: 2024-10-10 | E19: n.a. | K19: -1.37 | M19: -1.37 | O19: A | P19: 3200000 | V19: -1.37
B20: 2024-10-10 | E20: n.a. | K20: -0.2 | M20: 0 | O20: A | P20: 3200000 | V20: -0.2
B21: 2024-10-14 | C21: C | D21: ??? | E21: 01/10/24 | K21: -1449 | M21: -189 | O21: 003 | P21: 3650000 | V21: -1449
B22: 2024-10-14 | E22: n.a. | K22: -9.13 | M22: 0 | O22: A | P22: 3200000 | V22: -9.13
B23: 2024-10-14 | E23: n.a. | K23: -1.37 | M23: -1.37 | O23: A | P23: 3200000 | V23: -1.37
B24: 2024-10-14 | E24: n.a. | K24: -0.2 | M24: 0 | O24: A | P24: 3200000 | V24: -0.2
B25: 2024-10-14 | C25: C | D25: ??? | E25: 811 | K25: -19922.83 | M25: -2598.63 | O25: 003 | P25: 2000070 | V25: -19922.83
B26: 2024-10-14 | E26: n.a. | K26: -9.13 | M26: 0 | O26: A | P26: 3200000 | V26: -9.13
B27: 2024-10-14 | E27: n.a. | K27: -1.37 | M27: -1.37 | O27: A | P27: 3200000 | V27: -1.37
B28: 2024-10-14 | E28: n.a. | K28: -0.2 | M28: 0 | O28: A | P28: 3200000 | V28: -0.2
B29: 2024-10-17 | C29: C | D29: ??? | E29: 30170543 | K29: -694.4 | M29: 0 | O29: A | P29: 4400020 | V29: =J29+K29 -> -694.4
B30: 2024-10-17 | E30: n.a. | K30: -9.13 | M30: 0 | O30: A | P30: 3200000 | V30: -9.13
B31: 2024-10-17 | E31: n.a. | K31: -1.37 | M31: -1.37 | O31: A | P31: 3200000 | V31: -1.37
B32: 2024-10-17 | E32: n.a. | K32: -0.2 | M32: 0 | O32: A | P32: 3200000 | V32: -0.2
B33: 2024-10-17 | C33: C | D33: ??? | E33: 240004 | K33: -31865 | M33: 0 | O33: 003 | P33: 2000012 | V33: -31865
B34: 2024-10-17 | E34: n.a. | K34: -9.13 | M34: 0 | O34: A | P34: 3200000 | V34: -9.13
B35: 2024-10-17 | E35: n.a. | K35: -1.37 | M35: -1.37 | O35: A | P35: 3200000 | V35: -1.37
B36: 2024-10-17 | E36: n.a. | K36: -0.2 | M36: 0 | O36: A | P36: 3200000 | V36: -0.2
B37: 2024-10-21 | C37: C | D37: KHAROS | E37: RC000000297 | K37: -3346.36 | M37: -436.48 | O37: A | P37: 3080000 | V37: -3346.36
B38: 2024-10-21 | E38: n.a. | K38: -9.13 | M38: 0 | O38: A | P38: 3200000 | V38: -9.13
B39: 2024-10-21 | E39: n.a. | K39: -1.37 | M39: -1.37 | O39: A | P39: 3200000 | V39: -1.37
B40: 2024-10-21 | E40: n.a. | K40: -0.2 | M40: 0 | O40: A | P40: 3200000 | V40: -0.2
B41: 2024-10-22 | C41: C | D41: ECK | E41: 2024 09 1 | K41: -11375 | M41: 0 | O41: A | P41: 3350000 | V41: -11375
B42: 2024-10-22 | E42: n.a. | K42: -9.13 | M42: 0 | O42: A | P42: 3200000 | V42: -9.13
B43: 2024-10-22 | E43: n.a. | K43: -1.37 | M43: -1.37 | O43: A | P43: 3200000 | V43: -1.37
B44: 2024-10-22 | E44: n.a. | K44: -0.2 | M44: 0 | O44: A | P44: 3200000 | V44: -0.2
B45: 2024-10-23 | C45: C | D45: KHAROS | E45: OCT-24 | K45: -222881.14 | M45: 0 | O45: A | P45: 4400000 | V45: -222881.14
B46: 2024-10-23 | E46: n.a. | K46: -9.13 | M46: 0 | O46: A | P46: 3200000 | V46: -9.13
B47: 2024-10-23 | E47: n.a. | K47: -1.37 | M47: -1.37 | O47: A | P47: 3200000 | V47: -1.37
B48: 2024-10-23 | E48: n.a. | K48: -0.2 | M48: 0 | O48: A | P48: 3200000 | V48: -0.2
B49: 2024-10-23 | E49: n.a. | K49: -307.74 | M49: 0 | O49: A | P49: 3200000 | V49: -307.74
B50: 2024-10-25 | C50: C | D50: ORBAN | E50: 010662A | K50: -500 | M50: -65.22 | O50: A | P50: 4650001 | V50: =J50+K50 -> -500
B51: 2024-10-25 | E51: n.a. | K51: -9.13 | M51: 0 | O51: A | P51: 3200000 | V51: -9.13
B52: 2024-10-25 | E52: n.a. | K52: -1.37 | M52: -1.37 | O52: A | P52: 3200000 | V52: -1.37
B53: 2024-10-25 | E53: n.a. | K53: -0.2 | M53: 0 | O53: A | P53: 3200000 | V53: -0.2
B54: 2024-10-25 | C54: C | D54: ??? | E54: 18/10/24 | K54: -2500 | M54: 0 | O54: A | P54: 4650002 | V54: -2500
B55: 2024-10-25 | E55: n.a. | K55: -9.13 | M55: 0 | O55: A | P55: 3200000 | V55: -9.13
B56: 2024-10-25 | E56: n.a. | K56: -1.37 | M56: -1.37 | O56: A | P56: 3200000 | V56: -1.37
B57: 2024-10-25 | E57: n.a. | K57: -0.2 | M57: 0 | O57: A | P57: 3200000 | V57: -0.2
B58: 2024-10-25 | C58: C | D58: ??? | E58: IN107596 | K58: -128880 | M58: 0 | O58: 003 | P58: 2000011 | V58: -128880
B59: 2024-10-25 | E59: n.a. | K59: -17.39 | M59: 0 | O59: A | P59: 3200000 | V59: -17.39
B60: 2024-10-25 | E60: n.a. | K60: -2.61 | M60: -2.61 | O60: A | P60: 3200000 | V60: -2.61
B61: 2024-10-25 | E61: n.a. | K61: -0.2 | M61: 0 | O61: A | P61: 3200000 | V61: -0.2
B62: 2024-10-28 | C62: C | D62: KYAN | E62: 7908 | K62: -57270 | M62: -7470 | O62: 001 | P62: 4700001 | V62: -57270
B63: 2024-10-28 | E63: n.a. | K63: -9.13 | M63: 0 | O63: A | P63: 3200000 | V63: -9.13
B64: 2024-10-28 | E64: n.a. | K64: -1.37 | M64: -1.37 | O64: A | P64: 3200000 | V64: -1.37
B65: 2024-10-28 | E65: n.a. | K65: -0.2 | M65: 0 | O65: A | P65: 3200000 | V65: -0.2
B66: 2024-10-28 | C66: C | D66: DP | E66: 15 | K66: -2701 | M66: -352.31 | O66: A | P66: 4650001 | V66: -2701
B67: 2024-10-28 | E67: n.a. | K67: -9.13 | M67: 0 | O67: A | P67: 3200000 | V67: -9.13
B68: 2024-10-28 | E68: n.a. | K68: -1.37 | M68: -1.37 | O68: A | P68: 3200000 | V68: -1.37
B69: 2024-10-28 | E69: n.a. | K69: -0.2 | M69: 0 | O69: A | P69: 3200000 | V69: -0.2
B70: 2024-10-28 | C70: C | D70: TANASF | E70: 2024/041 | K70: -870 | M70: 0 | O70: A | P70: 4650001 | V70: -870
B71: 2024-10-28 | E71: n.a. | K71: -9.13 | M71: 0 | O71: A | P71: 3200000 | V71: -9.13
B72: 2024-10-28 | E72: n.a. | K72: -1.37 | M72: -1.37 | O72: A | P72: 3200000 | V72: -1.37
B73: 2024-10-28 | E73: n.a. | K73: -0.2 | M73: 0 | O73: A | P73: 3200000 | V73: -0.2
B74: 2024-10-29 | C74: C | D74: ALFA | E74: 766 | K74: -27900.77 | M74: -3639.23 | O74: 003 | P74: 2000012 | V74: -27900.77
B75: 2024-10-29 | E75: n.a. | K75: -9.13 | M75: 0 | O75: A | P75: 3200000 | V75: -9.13
B76: 2024-10-29 | E76: n.a. | K76: -1.37 | M76: -1.37 | O76: A | P76: 3200000 | V76: -1.37
B77: 2024-10-29 | E77: n.a. | K77: -0.2 | M77: 0 | O77: A | P77: 3200000 | V77: -0.2
B78: 2024-10-29 | C78: C | D78: ??? | E78: 240005 | K78: -11750 | M78: 0 | O78: 003 | P78: 2000012 | V78: -11750
B79: 2024-10-29 | E79: n.a. | K79: -9.13 | M79: 0 | O79: A | P79: 3200000 | V79: -9.13
B80: 2024-10-29 | E80: n.a. | K80: -1.37 | M80: -1.37 | O80: A | P80: 3200000 | V80: -1.37
B81: 2024-10-29 | E81: n.a. | K81: -0.2 | M81: 0 | O81: A | P81: 3200000 | V81: -0.2

Sheet 02_Pyro-Ledger
M2: Hier nur gefilterte Zahlen addieren!!!
A5: Account | B5: Description | C5: Internal Explanations | D5: RW Cat | E5: Default Tax Mode | F5: Tax Code | G5: Blocked | H5: Ext. Ref. | I5: No. of Notes | K5: Income (+) Inclusive VAT Amount | L5: Expense (-) Inclusive VAT Amount | M5: Total (=)
A7: Financial Category : I10 - Sales
A8: 1000000 | B8: Construction Contract Sales | C8: What is that exactly? | D8: 10 | E8: No tax type Default | F8: 0 | G8: No | I8: 0 | K8: =SUMIF('01_Pyro-2024'!$P$10:$P$1048576,$A8,'01_Pyro-2024'!J$10:J$1048576) -> 0 | L8: =SUMIF('01_Pyro-2024'!$P$10:$P$1048576,A8,'01_Pyro-2024'!K$10:K$1048576) -> 0 | M8: =K8+L8 -> 0
A9: 1000010 | B9: Biochar | C9: Biochar PyroNam is selling. | D9: 10 | E9: No tax type Default | F9: 0 | G9: No | I9: 0 | K9: =SUMIF('01_Pyro-2024'!$P$10:$P$1048576,$A9,'01_Pyro-2024'!J$10:J$1048576) -> 0 | L9: =SUMIF('01_Pyro-2024'!$P$10:$P$1048576,A9,'01_Pyro-2024'!K$10:K$1048576) -> 0 | M9: =K9+L9 -> 0
A10: 1000020 | B10: Wood Tar | C10: Wood Vinegar PyroNam is selling. | D10: 10 | E10: No tax type Default | F10: 0 | G10: No | I10: 0 | K10: =SUMIF('01_Pyro-2024'!$P$10:$P$1048576,$A10,'01_Pyro-2024'!J$10:J$1048576) -> 0 | L10: =SUMIF('01_Pyro-2024'!$P$10:$P$1048576,A10,'01_Pyro-2024'!K$10:K$1048576) -> 0 | M10: 0
A11: 1000030 | B11: Carbon Emissions | C11: What is about selling plants and app? | D11: 10 | E11: No tax type Default | F11: 0 | G11: No | I11: 0 | K11: =SUMIF('01_Pyro-2024'!$P$10:$P$1048576,$A11,'01_Pyro-2024'!J$10:J$1048576) -> 0 | L11: =SUMIF('01_Pyro-2024'!$P$10:$P$1048576,A11,'01_Pyro-2024'!K$10:K$1048576) -> 0 | M11: 0
A12: 1000040 | B12: Carbom commisions | C12: Income on commissions. | K12: =SUMIF('01_Pyro-2024'!$P$10:$P$1048576,$A12,'01_Pyro-2024'!J$10:J$1048576) -> 0 | L12: =SUMIF('01_Pyro-2024'!$P$10:$P$1048576,A12,'01_Pyro-2024'!K$10:K$1048576) -> 0 | M12: 0
A13: 1000050 | B13: Plant hardware | C13: Income on selling plants. | K13: =SUMIF('01_Pyro-2024'!$P$10:$P$1048576,$A13,'01_Pyro-2024'!J$10:J$1048576) -> 0 | L13: =SUMIF('01_Pyro-2024'!$P$10:$P$1048576,A13,'01_Pyro-2024'!K$10:K$1048576) -> 0 | M13: 0
A14: 1000060 | B14: Plant software | C14: Income on selling our app. | K14: =SUMIF('01_Pyro-2024'!$P$10:$P$1048576,$A14,'01_Pyro-2024'!J$10:J$1048576) -> 0 | L14: =SUMIF('01_Pyro-2024'!$P$10:$P$1048576,A14,'01_Pyro-2024'!K$10:K$1048576) -> 0 | M14: 0
A15: Financial Category : I15 - Cost of Sales
A16: 2000000 | B16: Contracting Materials / Cost of Sales | D16: 15 | E16: No tax type Default | F16: 0 | G16: No | I16: 0 | K16: =SUMIF('01_Pyro-2024'!$P$10:$P$1048576,$A16,'01_Pyro-2024'!J$10:J$1048576) -> 0 | L16: =SUMIF('01_Pyro-2024'!$P$10:$P$1048576,A16,'01_Pyro-2024'!K$10:K$1048576) -> 0 | M16: =K16+L16 -> 0
A17: 2000010 | B17: Cost of Sales | C17: Please specify with sub-account. | D17: 15 | E17: No tax type Default | F17: 0 | G17: No | I17: 0 | K17: =SUMIF('01_Pyro-2024'!$P$10:$P$1048576,$A17,'01_Pyro-2024'!J$10:J$1048576) -> 0 | L17: =SUMIF('01_Pyro-2024'!$P$10:$P$1048576,A17,'01_Pyro-2024'!K$10:K$1048576) -> 0 | M17: 0
A18: 2000011 | B18: Plant development cost | C18: Only Costs for the plant (machine) itself. | D18: 15 | E18: No tax type Default | F18: 0 | G18: No | I18: 0 | K18: =SUMIF('01_Pyro-2024'!$P$10:$P$1048576,$A18,'01_Pyro-2024'!J$10:J$1048576) -> 0 | L18: =SUMIF('01_Pyro-2024'!$P$10:$P$1048576,A18,'01_Pyro-2024'!K$10:K$1048576) -> -128880 | M18: -128880
A19: 2000012 | B19: Building construction | C19: Costs for the facilities (contractors). | K19: =SUMIF('01_Pyro-2024'!$P$10:$P$1048576,$A19,'01_Pyro-2024'!J$10:J$1048576) -> 0 | L19: =SUMIF('01_Pyro-2024'!$P$10:$P$1048576,A19,'01_Pyro-2024'!K$10:K$1048576) -> -71515.77 | M19: -71515.77
A20: 2000013 | B20: Equipment purchase | C20: Costs for purchased hardware and tools. | K20: =SUMIF('01_Pyro-2024'!$P$10:$P$1048576,$A20,'01_Pyro-2024'!J$10:J$1048576) -> 0 | L20: =SUMIF('01_Pyro-2024'!$P$10:$P$1048576,A20,'01_Pyro-2024'!K$10:K$1048576) -> 0 | M20: 0
A21: 2000014 | B21: Equipment hire/rental | C21: Costs for hire/rental hardware and tools. | K21: =SUMIF('01_Pyro-2024'!$P$10:$P$1048576,$A21,'01_Pyro-2024'!J$10:J$1048576) -> 0 | L21: =SUMIF('01_Pyro-2024'!$P$10:$P$1048576,A21,'01_Pyro-2024'!K$10:K$1048576) -> 0 | M21: 0
A22: 2000015 | B22: Refurbishment and Maintanance | C22: Regular reoccurring costs. | K22: =SUMIF('01_Pyro-2024'!$P$10:$P$1048576,$A22,'01_Pyro-2024'!J$10:J$1048576) -> 0 | L22: =SUMIF('01_Pyro-2024'!$P$10:$P$1048576,A22,'01_Pyro-2024'!K$10:K$1048576) -> 0 | M22: 0
A23: 2000016 | B23: Research and Development | C23: Spechial costs, that are not regulary. | K23: =SUMIF('01_Pyro-2024'!$P$10:$P$1048576,$A23,'01_Pyro-2024'!J$10:J$1048576) -> 0 | L23: =SUMIF('01_Pyro-2024'!$P$10:$P$1048576,A23,'01_Pyro-2024'!K$10:K$1048576) -> 0 | M23: 0
A24: 2000020 | B24: Health safety protective clothing | C24: Costs on PPE for the workers. | D24: 15 | E24: No tax type Default | F24: 0 | G24: No | I24: 0 | K24: =SUMIF('01_Pyro-2024'!$P$10:$P$1048576,$A24,'01_Pyro-2024'!J$10:J$1048576) -> 0 | L24: =SUMIF('01_Pyro-2024'!$P$10:$P$1048576,A24,'01_Pyro-2024'!K$10:K$1048576) -> 0 | M24: 0
A25: 2000030 | B25: Spare parts, consum. small tools & equip. | C25: Only Cconsumer goods, no assets. | D25: 15 | E25: No tax type Default | F25: 0 | G25: No | I25: 0 | K25: =SUMIF('01_Pyro-2024'!$P$10:$P$1048576,$A25,'01_Pyro-2024'!J$10:J$1048576) -> 0 | L25: =SUMIF('01_Pyro-2024'!$P$10:$P$1048576,A25,'01_Pyro-2024'!K$10:K$1048576) -> 0 | M25: 0
A26: 2000031 | B26: Consumables office | C26: Consumer goods for office (admin). | K26: =SUMIF('01_Pyro-2024'!$P$10:$P$1048576,$A26,'01_Pyro-2024'!J$10:J$1048576) -> 0 | L26: =SUMIF('01_Pyro-2024'!$P$10:$P$1048576,A26,'01_Pyro-2024'!K$10:K$1048576) -> 0 | M26: 0
A27: 2000032 | B27: Consumables plants | C27: Consumer goods for plants (operate). | K27: =SUMIF('01_Pyro-2024'!$P$10:$P$1048576,$A27,'01_Pyro-2024'!J$10:J$1048576) -> 0 | L27: =SUMIF('01_Pyro-2024'!$P$10:$P$1048576,A27,'01_Pyro-2024'!K$10:K$1048576) -> 0 | M27: 0
A28: 2000040 | B28: Equipment hire/rental | C28: Please specify with sub-account. | D28: 15 | E28: No tax type Default | F28: 0 | G28: No | I28: 0 | K28: =SUMIF('01_Pyro-2024'!$P$10:$P$1048576,$A28,'01_Pyro-2024'!J$10:J$1048576) -> 0 | L28: =SUMIF('01_Pyro-2024'!$P$10:$P$1048576,A28,'01_Pyro-2024'!K$10:K$1048576) -> 0 | M28: 0
A29: 2000041 | B29: Equipment hire/rental office | C29: Rentals for office (admin). | K29: =SUMIF('01_Pyro-2024'!$P$10:$P$1048576,$A29,'01_Pyro-2024'!J$10:J$1048576) -> 0 | L29: =SUMIF('01_Pyro-2024'!$P$10:$P$1048576,A29,'01_Pyro-2024'!K$10:K$1048576) -> 0 | M29: 0
A30: 2000042 | B30: Equipment hire/rental plants | C30: Rentals for plants (operate). | K30: =SUMIF('01_Pyro-2024'!$P$10:$P$1048576,$A30,'01_Pyro-2024'!J$10:J$1048576) -> 0 | L30: =SUMIF('01_Pyro-2024'!$P$10:$P$1048576,A30,'01_Pyro-2024'!K$10:K$1048576) -> 0 | M30: 0
A31: 2000050 | B31: Sampling and analysis | C31: Costs on any investigation. | D31: 15 | E31: No tax type Default | F31: 0 | G31: No | I31: 0 | K31: =SUMIF('01_Pyro-2024'!$P$10:$P$1048576,$A31,'01_Pyro-2024'!J$10:J$1048576) -> 0 | L31: =SUMIF('01_Pyro-2024'!$P$10:$P$1048576,A31,'01_Pyro-2024'!K$10:K$1048576) -> 0 | M31: 0
A32: 2000060 | B32: Calibration | C32: Service from hardware suppliers. | D32: 15 | E32: No tax type Default | F32: 0 | G32: No | I32: 0 | K32: =SUMIF('01_Pyro-2024'!$P$10:$P$1048576,$A32,'01_Pyro-2024'!J$10:J$1048576) -> 0 | L32: =SUMIF('01_Pyro-2024'!$P$10:$P$1048576,A32,'01_Pyro-2024'!K$10:K$1048576) -> 0 | M32: 0
A33: 2000070 | B33: Biomass wood delivery | C33: Deliveries from our Partner & Suppliers | D33: 15 | E33: No tax type Default | F33: 0 | G33: No | I33: 0 | K33: =SUMIF('01_Pyro-2024'!$P$10:$P$1048576,$A33,'01_Pyro-2024'!J$10:J$1048576) -> 0 | L33: =SUMIF('01_Pyro-2024'!$P$10:$P$1048576,A33,'01_Pyro-2024'!K$10:K$1048576) -> -19922.83 | M33: -19922.83
A34: 2000080 | B34: Packaging bags | C34: Bags, Labls etc. like consumables??? | D34: 15 | E34: No tax type Default | F34: 0 | G34: No | I34: 0 | K34: =SUMIF('01_Pyro-2024'!$P$10:$P$1048576,$A34,'01_Pyro-2024'!J$10:J$1048576) -> 0 | L34: =SUMIF('01_Pyro-2024'!$P$10:$P$1048576,A34,'01_Pyro-2024'!K$10:K$1048576) -> 0 | M34: 0
A35: 2000090 | B35: Material | C35: Which material, like plant development??? | D35: 15 | E35: No tax type Default | F35: 0 | G35: No | I35: 0 | K35: =SUMIF('01_Pyro-2024'!$P$10:$P$1048576,$A35,'01_Pyro-2024'!J$10:J$1048576) -> 0 | L35: =SUMIF('01_Pyro-2024'!$P$10:$P$1048576,A35,'01_Pyro-2024'!K$10:K$1048576) -> 0 | M35: 0
A36: 2100000 | B36: Inventory Materials Adjustments | D36: 15 | E36: No tax type Default | F36: 0 | G36: No | I36: 0 | K36: =SUMIF('01_Pyro-2024'!$P$10:$P$1048576,$A36,'01_Pyro-2024'!J$10:J$1048576) -> 0 | L36: =SUMIF('01_Pyro-2024'!$P$10:$P$1048576,A36,'01_Pyro-2024'!K$10:K$1048576) -> 0 | M36: 0
A37: 2150000 | B37: Inventory Materials Count Variance | D37: 15 | E37: No tax type Default | F37: 0 | G37: No | I37: 0 | K37: =SUMIF('01_Pyro-2024'!$P$10:$P$1048576,$A37,'01_Pyro-2024'!J$10:J$1048576) -> 0 | L37: =SUMIF('01_Pyro-2024'!$P$10:$P$1048576,A37,'01_Pyro-2024'!K$10:K$1048576) -> 0 | M37: 0
A38: 2200000 | B38: Purchase Variance | D38: 15 | E38: No tax type Default | F38: 0 | G38: No | I38: 0 | K38: =SUMIF('01_Pyro-2024'!$P$10:$P$1048576,$A38,'01_Pyro-2024'!J$10:J$1048576) -> 0 | L38: =SUMIF('01_Pyro-2024'!$P$10:$P$1048576,A38,'01_Pyro-2024'!K$10:K$1048576) -> 0 | M38: 0
A39: 2250000 | B39: Construction Plant Hire | D39: 15 | E39: No tax type Default | F39: 0 | G39: No | I39: 0 | K39: =SUMIF('01_Pyro-2024'!$P$10:$P$1048576,$A39,'01_Pyro-2024'!J$10:J$1048576) -> 0 | L39: =SUMIF('01_Pyro-2024'!$P$10:$P$1048576,A39,'01_Pyro-2024'!K$10:K$1048576) -> 0 | M39: 0
A40: 2350000 | B40: Construction Sub-Contractors | D40: 15 | E40: No tax type Default | F40: 0 | G40: No | I40: 0 | K40: =SUMIF('01_Pyro-2024'!$P$10:$P$1048576,$A40,'01_Pyro-2024'!J$10:J$1048576) -> 0 | L40: =SUMIF('01_Pyro-2024'!$P$10:$P$1048576,A40,'01_Pyro-2024'!K$10:K$1048576) -> 0 | M40: 0
A41: 2400000 | B41: Construction Overheads | D41: 15 | E41: No tax type Default | F41: 0 | G41: No | I41: 0 | K41: =SUMIF('01_Pyro-2024'!$P$10:$P$1048576,$A41,'01_Pyro-2024'!J$10:J$1048576) -> 0 | L41: =SUMIF('01_Pyro-2024'!$P$10:$P$1048576,A41,'01_Pyro-2024'!K$10:K$1048576) -> 0 | M41: 0
A42: 2400020 | B42: O/Hs - Consumables | D42: 15 | E42: No tax type Default | F42: 0 | G42: No | I42: 0 | K42: =SUMIF('01_Pyro-2024'!$P$10:$P$1048576,$A42,'01_Pyro-2024'!J$10:J$1048576) -> 0 | L42: =SUMIF('01_Pyro-2024'!$P$10:$P$1048576,A42,'01_Pyro-2024'!K$10:K$1048576) -> 0 | M42: 0
A43: 2450000 | B43: Construction Salaries & Wages | D43: 15 | E43: No tax type Default | F43: 0 | G43: No | I43: 0 | K43: =SUMIF('01_Pyro-2024'!$P$10:$P$1048576,$A43,'01_Pyro-2024'!J$10:J$1048576) -> 0 | L43: =SUMIF('01_Pyro-2024'!$P$10:$P$1048576,A43,'01_Pyro-2024'!K$10:K$1048576) -> 0 | M43: 0
A44: 2500000 | B44: Construction Selling Expenses | D44: 15 | E44: No tax type Default | F44: 0 | G44: No | I44: 0 | K44: =SUMIF('01_Pyro-2024'!$P$10:$P$1048576,$A44,'01_Pyro-2024'!J$10:J$1048576) -> 0 | L44: =SUMIF('01_Pyro-2024'!$P$10:$P$1048576,A44,'01_Pyro-2024'!K$10:K$1048576) -> 0 | M44: 0
A45: 2550000 | B45: Construction Costs - Other | D45: 15 | E45: No tax type Default | F45: 0 | G45: No | I45: 0 | K45: =SUMIF('01_Pyro-2024'!$P$10:$P$1048576,$A45,'01_Pyro-2024'!J$10:J$1048576) -> 0 | L45: =SUMIF('01_Pyro-2024'!$P$10:$P$1048576,A45,'01_Pyro-2024'!K$10:K$1048576) -> 0 | M45: 0
A46: 2600000 | B46: Construction Work in Progress | D46: 15 | E46: No tax type Default | F46: 0 | G46: No | I46: 0 | K46: =SUMIF('01_Pyro-2024'!$P$10:$P$1048576,$A46,'01_Pyro-2024'!J$10:J$1048576) -> 0 | L46: =SUMIF('01_Pyro-2024'!$P$10:$P$1048576,A46,'01_Pyro-2024'!K$10:K$1048576) -> 0 | M46: 0
A47: 2650000 | B47: Pft/Loss on Foreign Currency Exchange | D47: 15 | E47: No tax type Default | F47: 0 | G47: No | I47: 0 | K47: =SUMIF('01_Pyro-2024'!$P$10:$P$1048576,$A47,'01_Pyro-2024'!J$10:J$1048576) -> 0 | L47: =SUMIF('01_Pyro-2024'!$P$10:$P$1048576,A47,'01_Pyro-2024'!K$10:K$1048576) -> 0 | M47: 0
A48: 2650001 | B48: Pft/Loss on Forex - Realised | D48: 15 | E48: No tax type Default | F48: 0 | G48: No | I48: 0 | K48: =SUMIF('01_Pyro-2024'!$P$10:$P$1048576,$A48,'01_Pyro-2024'!J$10:J$1048576) -> 0 | L48: =SUMIF('01_Pyro-2024'!$P$10:$P$1048576,A48,'01_Pyro-2024'!K$10:K$1048576) -> 0 | M48: 0
A49: 2650002 | B49: Pft/Loss on Forex - Unrealised | D49: 15 | E49: No tax type Default | F49: 0 | G49: No | I49: 0 | K49: =SUMIF('01_Pyro-2024'!$P$10:$P$1048576,$A49,'01_Pyro-2024'!J$10:J$1048576) -> 0 | L49: =SUMIF('01_Pyro-2024'!$P$10:$P$1048576,A49,'01_Pyro-2024'!K$10:K$1048576) -> 0 | M49: 0
A50: Financial Category : I20 - Other Income
A51: 2700000 | B51: Discount Received for Cash | C51: ??? | D51: 20 | E51: No tax type Default | F51: 0 | G51: No | I51: 0 | K51: =SUMIF('01_Pyro-2024'!$P$10:$P$1048576,$A51,'01_Pyro-2024'!J$10:J$1048576) -> 0 | L51: =SUMIF('01_Pyro-2024'!$P$10:$P$1048576,A51,'01_Pyro-2024'!K$10:K$1048576) -> 0 | M51: =K51+L51 -> 0
A52: 2750000 | B52: Interest Received | D52: 20 | E52: No tax type Default | F52: 0 | G52: No | I52: 0 | K52: =SUMIF('01_Pyro-2024'!$P$10:$P$1048576,$A52,'01_Pyro-2024'!J$10:J$1048576) -> 0 | L52: =SUMIF('01_Pyro-2024'!$P$10:$P$1048576,A52,'01_Pyro-2024'!K$10:K$1048576) -> 0 | M52: 0
A53: 2800000 | B53: Pft/Loss on Sale of Non Current Assets | C53: ??? | D53: 20 | E53: No tax type Default | F53: 0 | G53: No | I53: 0 | K53: =SUMIF('01_Pyro-2024'!$P$10:$P$1048576,$A53,'01_Pyro-2024'!J$10:J$1048576) -> 0 | L53: =SUMIF('01_Pyro-2024'!$P$10:$P$1048576,A53,'01_Pyro-2024'!K$10:K$1048576) -> 0 | M53: 0
A54: 2850000 | B54: Bad Debts Recovered | D54: 20 | E54: No tax type Default | F54: 0 | G54: No | I54: 0 | K54: =SUMIF('01_Pyro-2024'!$P$10:$P$1048576,$A54,'01_Pyro-2024'!J$10:J$1048576) -> 0 | L54: =SUMIF('01_Pyro-2024'!$P$10:$P$1048576,A54,'01_Pyro-2024'!K$10:K$1048576) -> 0 | M54: 0
A55: 2900000 | B55: Sundry Income | C55: ??? | D55: 20 | E55: No tax type Default | F55: 0 | G55: No | I55: 0 | K55: =SUMIF('01_Pyro-2024'!$P$10:$P$1048576,$A55,'01_Pyro-2024'!J$10:J$1048576) -> 0 | L55: =SUMIF('01_Pyro-2024'!$P$10:$P$1048576,A55,'01_Pyro-2024'!K$10:K$1048576) -> 0 | M55: 0
A56: Financial Category : I25 - Expenses
A57: 3000000 | B57: Accounting Fees | C57: E.g. PKF etc. | D57: 25 | E57: No tax type Default | F57: 0 | G57: No | I57: 0 | K57: =SUMIF('01_Pyro-2024'!$P$10:$P$1048576,$A57,'01_Pyro-2024'!J$10:J$1048576) -> 0 | L57: =SUMIF('01_Pyro-2024'!$P$10:$P$1048576,A57,'01_Pyro-2024'!K$10:K$1048576) -> 0 | M57: =K57+L57 -> 0
A58: 3050000 | B58: Advertising & Promotions | C58: Advertising products and actions taken. | D58: 25 | E58: No tax type Default | F58: 0 | G58: No | I58: 0 | K58: =SUMIF('01_Pyro-2024'!$P$10:$P$1048576,$A58,'01_Pyro-2024'!J$10:J$1048576) -> 0 | L58: =SUMIF('01_Pyro-2024'!$P$10:$P$1048576,A58,'01_Pyro-2024'!K$10:K$1048576) -> 0 | M58: 0
A59: 3080000 | B59: Payroll administration fees | C59: E.g. Kharos, Biosyn etc. | D59: 25 | E59: No tax type Default | F59: 0 | G59: No | I59: 0 | K59: =SUMIF('01_Pyro-2024'!$P$10:$P$1048576,$A59,'01_Pyro-2024'!J$10:J$1048576) -> 0 | L59: =SUMIF('01_Pyro-2024'!$P$10:$P$1048576,A59,'01_Pyro-2024'!K$10:K$1048576) -> -3346.36 | M59: -3346.36
A60: 3100000 | B60: Audit Fees | C60: Audits for Biochar etc. | D60: 25 | E60: No tax type Default | F60: 0 | G60: No | I60: 0 | K60: =SUMIF('01_Pyro-2024'!$P$10:$P$1048576,$A60,'01_Pyro-2024'!J$10:J$1048576) -> 0 | L60: =SUMIF('01_Pyro-2024'!$P$10:$P$1048576,A60,'01_Pyro-2024'!K$10:K$1048576) -> 0 | M60: 0
A61: 3120000 | B61: Secretarial Fees | D61: 25 | E61: No tax type Default | F61: 0 | G61: No | I61: 0 | K61: =SUMIF('01_Pyro-2024'!$P$10:$P$1048576,$A61,'01_Pyro-2024'!J$10:J$1048576) -> 0 | L61: =SUMIF('01_Pyro-2024'!$P$10:$P$1048576,A61,'01_Pyro-2024'!K$10:K$1048576) -> 0 | M61: 0
A62: 3150000 | B62: Bad Debts | D62: 25 | E62: No tax type Default | F62: 0 | G62: No | I62: 0 | K62: =SUMIF('01_Pyro-2024'!$P$10:$P$1048576,$A62,'01_Pyro-2024'!J$10:J$1048576) -> 0 | L62: =SUMIF('01_Pyro-2024'!$P$10:$P$1048576,A62,'01_Pyro-2024'!K$10:K$1048576) -> 0 | M62: 0
A63: 3200000 | B63: Bank Charges | C63: E.g. BankBIC, also on Shop-Account? | D63: 25 | E63: No tax type Default | F63: 0 | G63: No | I63: 0 | K63: =SUMIF('01_Pyro-2024'!$P$10:$P$1048576,$A63,'01_Pyro-2024'!J$10:J$1048576) -> 0 | L63: =SUMIF('01_Pyro-2024'!$P$10:$P$1048576,A63,'01_Pyro-2024'!K$10:K$1048576) -> -499.14 | M63: -499.14
A64: 3250000 | B64: Cleaning | C64: Which cleaning is meant here? | D64: 25 | E64: No tax type Default | F64: 0 | G64: No | I64: 0 | K64: =SUMIF('01_Pyro-2024'!$P$10:$P$1048576,$A64,'01_Pyro-2024'!J$10:J$1048576) -> 0 | L64: =SUMIF('01_Pyro-2024'!$P$10:$P$1048576,A64,'01_Pyro-2024'!K$10:K$1048576) -> 0 | M64: 0
A65: 3300000 | B65: Computer Expenses | C65: Please specify with sub-account. | D65: 25 | E65: No tax type Default | F65: 0 | G65: No | I65: 0 | K65: =SUMIF('01_Pyro-2024'!$P$10:$P$1048576,$A65,'01_Pyro-2024'!J$10:J$1048576) -> 0 | L65: =SUMIF('01_Pyro-2024'!$P$10:$P$1048576,A65,'01_Pyro-2024'!K$10:K$1048576) -> 0 | M65: 0
A66: 3300010 | B66: IT devices office | C66: All devices and related for office (admin). | K66: =SUMIF('01_Pyro-2024'!$P$10:$P$1048576,$A66,'01_Pyro-2024'!J$10:J$1048576) -> 0 | L66: =SUMIF('01_Pyro-2024'!$P$10:$P$1048576,A66,'01_Pyro-2024'!K$10:K$1048576) -> 0 | M66: 0
A67: 3300020 | B67: IT devices plants | C67: All devices and related for plants (operate). | K67: =SUMIF('01_Pyro-2024'!$P$10:$P$1048576,$A67,'01_Pyro-2024'!J$10:J$1048576) -> 0 | L67: =SUMIF('01_Pyro-2024'!$P$10:$P$1048576,A67,'01_Pyro-2024'!K$10:K$1048576) -> 0 | M67: 0
A68: 3350000 | B68: Consulting Fees | C68: E.g. ECC, Surveyors etc. | D68: 25 | E68: No tax type Default | F68: 0 | G68: No | I68: 0 | K68: =SUMIF('01_Pyro-2024'!$P$10:$P$1048576,$A68,'01_Pyro-2024'!J$10:J$1048576) -> 0 | L68: =SUMIF('01_Pyro-2024'!$P$10:$P$1048576,A68,'01_Pyro-2024'!K$10:K$1048576) -> -11375 | M68: -11375
A69: 3350010 | B69: Consulting Fees office | C69: Accountants, HR, Laywer etc. (admin). | K69: =SUMIF('01_Pyro-2024'!$P$10:$P$1048576,$A69,'01_Pyro-2024'!J$10:J$1048576) -> 0 | L69: =SUMIF('01_Pyro-2024'!$P$10:$P$1048576,A69,'01_Pyro-2024'!K$10:K$1048576) -> 0 | M69: 0
A70: 3350020 | B70: Consulting Fees plants | C70: Environmental, Technical etc. (operate). | K70: =SUMIF('01_Pyro-2024'!$P$10:$P$1048576,$A70,'01_Pyro-2024'!J$10:J$1048576) -> 0 | L70: =SUMIF('01_Pyro-2024'!$P$10:$P$1048576,A70,'01_Pyro-2024'!K$10:K$1048576) -> 0 | M70: 0
A71: 3400000 | B71: Courier & Postage | C71: Transportation, but not construction. | D71: 25 | E71: No tax type Default | F71: 0 | G71: No | I71: 0 | K71: =SUMIF('01_Pyro-2024'!$P$10:$P$1048576,$A71,'01_Pyro-2024'!J$10:J$1048576) -> 0 | L71: =SUMIF('01_Pyro-2024'!$P$10:$P$1048576,A71,'01_Pyro-2024'!K$10:K$1048576) -> 0 | M71: 0
A72: 3450000 | B72: Depreciation | C72: Only used by the accounting??? | D72: 25 | E72: No tax type Default | F72: 0 | G72: No | I72: 0 | K72: =SUMIF('01_Pyro-2024'!$P$10:$P$1048576,$A72,'01_Pyro-2024'!J$10:J$1048576) -> 0 | L72: =SUMIF('01_Pyro-2024'!$P$10:$P$1048576,A72,'01_Pyro-2024'!K$10:K$1048576) -> 0 | M72: 0
A73: 3500000 | B73: Directors Fees & Remuneration | C73: What is booked in here??? | D73: 25 | E73: No tax type Default | F73: 0 | G73: No | I73: 0 | K73: =SUMIF('01_Pyro-2024'!$P$10:$P$1048576,$A73,'01_Pyro-2024'!J$10:J$1048576) -> 0 | L73: =SUMIF('01_Pyro-2024'!$P$10:$P$1048576,A73,'01_Pyro-2024'!K$10:K$1048576) -> 0 | M73: 0
A74: 3550000 | B74: Discount Allowed for Cash | C74: Maybe this for: From Bank to Cashbook? | D74: 25 | E74: No tax type Default | F74: 0 | G74: No | I74: 0 | K74: =SUMIF('01_Pyro-2024'!$P$10:$P$1048576,$A74,'01_Pyro-2024'!J$10:J$1048576) -> 0 | L74: =SUMIF('01_Pyro-2024'!$P$10:$P$1048576,A74,'01_Pyro-2024'!K$10:K$1048576) -> 0 | M74: 0
A75: 3600000 | B75: Donations | D75: 25 | E75: No tax type Default | F75: 0 | G75: No | I75: 0 | K75: =SUMIF('01_Pyro-2024'!$P$10:$P$1048576,$A75,'01_Pyro-2024'!J$10:J$1048576) -> 0 | L75: =SUMIF('01_Pyro-2024'!$P$10:$P$1048576,A75,'01_Pyro-2024'!K$10:K$1048576) -> 0 | M75: 0
A76: 3650000 | B76: Electricity & Water | D76: 25 | E76: No tax type Default | F76: 0 | G76: No | I76: 0 | K76: =SUMIF('01_Pyro-2024'!$P$10:$P$1048576,$A76,'01_Pyro-2024'!J$10:J$1048576) -> 0 | L76: =SUMIF('01_Pyro-2024'!$P$10:$P$1048576,A76,'01_Pyro-2024'!K$10:K$1048576) -> -1449 | M76: -1449
A77: 3650010 | B77: Electricity & Water office | C77: Electricity & Water for office (admin). | K77: =SUMIF('01_Pyro-2024'!$P$10:$P$1048576,$A77,'01_Pyro-2024'!J$10:J$1048576) -> 0 | L77: =SUMIF('01_Pyro-2024'!$P$10:$P$1048576,A77,'01_Pyro-2024'!K$10:K$1048576) -> 0 | M77: 0
A78: 3650020 | B78: Electricity & Water plants | C78: Electricity & Water for plants (operate). | K78: =SUMIF('01_Pyro-2024'!$P$10:$P$1048576,$A78,'01_Pyro-2024'!J$10:J$1048576) -> 0 | L78: =SUMIF('01_Pyro-2024'!$P$10:$P$1048576,A78,'01_Pyro-2024'!K$10:K$1048576) -> 0 | M78: 0
A79: 3700000 | B79: Entertainment Expenses | C79: E.g. Food, Drinks, Restaurants etc. | D79: 25 | E79: No tax type Default | F79: 0 | G79: No | I79: 0 | K79: =SUMIF('01_Pyro-2024'!$P$10:$P$1048576,$A79,'01_Pyro-2024'!J$10:J$1048576) -> 0 | L79: =SUMIF('01_Pyro-2024'!$P$10:$P$1048576,A79,'01_Pyro-2024'!K$10:K$1048576) -> 0 | M79: 0
A80: 3700010 | B80: Entertainment office | C80: For external, administrativ or advertising. | K80: =SUMIF('01_Pyro-2024'!$P$10:$P$1048576,$A80,'01_Pyro-2024'!J$10:J$1048576) -> 0 | L80: =SUMIF('01_Pyro-2024'!$P$10:$P$1048576,A80,'01_Pyro-2024'!K$10:K$1048576) -> 0 | M80: 0
A81: 3700020 | B81: Entertainment plants | C81: For internal, operational or on site. | K81: =SUMIF('01_Pyro-2024'!$P$10:$P$1048576,$A81,'01_Pyro-2024'!J$10:J$1048576) -> 0 | L81: =SUMIF('01_Pyro-2024'!$P$10:$P$1048576,A81,'01_Pyro-2024'!K$10:K$1048576) -> 0 | M81: 0
A82: 3750000 | B82: Finance Charges | D82: 25 | E82: No tax type Default | F82: 0 | G82: No | I82: 0 | K82: =SUMIF('01_Pyro-2024'!$P$10:$P$1048576,$A82,'01_Pyro-2024'!J$10:J$1048576) -> 0 | L82: =SUMIF('01_Pyro-2024'!$P$10:$P$1048576,A82,'01_Pyro-2024'!K$10:K$1048576) -> 0 | M82: 0
A83: 3800000 | B83: General Expenses | D83: 25 | E83: No tax type Default | F83: 0 | G83: No | I83: 0 | K83: =SUMIF('01_Pyro-2024'!$P$10:$P$1048576,$A83,'01_Pyro-2024'!J$10:J$1048576) -> 0 | L83: =SUMIF('01_Pyro-2024'!$P$10:$P$1048576,A83,'01_Pyro-2024'!K$10:K$1048576) -> 0 | M83: 0
A84: 3800010 | B84: General Expenses - Gifts | D84: 25 | E84: No tax type Default | F84: 0 | G84: No | I84: 0 | K84: =SUMIF('01_Pyro-2024'!$P$10:$P$1048576,$A84,'01_Pyro-2024'!J$10:J$1048576) -> 0 | L84: =SUMIF('01_Pyro-2024'!$P$10:$P$1048576,A84,'01_Pyro-2024'!K$10:K$1048576) -> 0 | M84: 0
A85: 3800020 | B85: General Expenses - Fines | D85: 25 | E85: No tax type Default | F85: 0 | G85: No | I85: 0 | K85: =SUMIF('01_Pyro-2024'!$P$10:$P$1048576,$A85,'01_Pyro-2024'!J$10:J$1048576) -> 0 | L85: =SUMIF('01_Pyro-2024'!$P$10:$P$1048576,A85,'01_Pyro-2024'!K$10:K$1048576) -> 0 | M85: 0
A86: 3850000 | B86: Insurance | C86: E.g. Santam, Welwitschia etc. | D86: 25 | E86: No tax type Default | F86: 0 | G86: No | I86: 0 | K86: =SUMIF('01_Pyro-2024'!$P$10:$P$1048576,$A86,'01_Pyro-2024'!J$10:J$1048576) -> 0 | L86: =SUMIF('01_Pyro-2024'!$P$10:$P$1048576,A86,'01_Pyro-2024'!K$10:K$1048576) -> 0 | M86: 0
A87: 3900000 | B87: Interest Paid on Loans | C87: Please specify with an sample??? | D87: 25 | E87: No tax type Default | F87: 0 | G87: No | I87: 0 | K87: =SUMIF('01_Pyro-2024'!$P$10:$P$1048576,$A87,'01_Pyro-2024'!J$10:J$1048576) -> 0 | L87: =SUMIF('01_Pyro-2024'!$P$10:$P$1048576,A87,'01_Pyro-2024'!K$10:K$1048576) -> 0 | M87: 0
A88: 3910000 | B88: Interest Paid Suppliers | C88: Please specify with an sample??? | D88: 0 | F88: 0 | G88: No | I88: 0 | K88: =SUMIF('01_Pyro-2024'!$P$10:$P$1048576,$A88,'01_Pyro-2024'!J$10:J$1048576) -> 0 | L88: =SUMIF('01_Pyro-2024'!$P$10:$P$1048576,A88,'01_Pyro-2024'!K$10:K$1048576) -> 0 | M88: 0
A89: 3950000 | B89: Leasing Charges | D89: 25 | E89: No tax type Default | F89: 0 | G89: No | I89: 0 | K89: =SUMIF('01_Pyro-2024'!$P$10:$P$1048576,$A89,'01_Pyro-2024'!J$10:J$1048576) -> 0 | L89: =SUMIF('01_Pyro-2024'!$P$10:$P$1048576,A89,'01_Pyro-2024'!K$10:K$1048576) -> 0 | M89: 0
A90: 4000000 | B90: Legal Fees | C90: Consultion from Laywers, Attornys etc. | D90: 25 | E90: No tax type Default | F90: 0 | G90: No | I90: 0 | K90: =SUMIF('01_Pyro-2024'!$P$10:$P$1048576,$A90,'01_Pyro-2024'!J$10:J$1048576) -> 0 | L90: =SUMIF('01_Pyro-2024'!$P$10:$P$1048576,A90,'01_Pyro-2024'!K$10:K$1048576) -> 0 | M90: 0
A91: 4050000 | B91: Levies | D91: 25 | E91: No tax type Default | F91: 0 | G91: No | I91: 0 | K91: =SUMIF('01_Pyro-2024'!$P$10:$P$1048576,$A91,'01_Pyro-2024'!J$10:J$1048576) -> 0 | L91: =SUMIF('01_Pyro-2024'!$P$10:$P$1048576,A91,'01_Pyro-2024'!K$10:K$1048576) -> 0 | M91: 0
A92: 4100000 | B92: Members Salaries | D92: 25 | E92: No tax type Default | F92: 0 | G92: No | I92: 0 | K92: =SUMIF('01_Pyro-2024'!$P$10:$P$1048576,$A92,'01_Pyro-2024'!J$10:J$1048576) -> 0 | L92: =SUMIF('01_Pyro-2024'!$P$10:$P$1048576,A92,'01_Pyro-2024'!K$10:K$1048576) -> 0 | M92: 0
A93: 4150000 | B93: Motor Vehicle Expenses | C93: Please specify with sub-account. | D93: 25 | E93: No tax type Default | F93: 0 | G93: No | I93: 0 | K93: =SUMIF('01_Pyro-2024'!$P$10:$P$1048576,$A93,'01_Pyro-2024'!J$10:J$1048576) -> 0 | L93: =SUMIF('01_Pyro-2024'!$P$10:$P$1048576,A93,'01_Pyro-2024'!K$10:K$1048576) -> 0 | M93: 0
A94: 4150010 | B94: Motor Vehicle - Petrol & Oil | C94: Only vehicles, no tools or maschines??? | D94: 25 | E94: No tax type Default | F94: 0 | G94: No | I94: 0 | K94: =SUMIF('01_Pyro-2024'!$P$10:$P$1048576,$A94,'01_Pyro-2024'!J$10:J$1048576) -> 0 | L94: =SUMIF('01_Pyro-2024'!$P$10:$P$1048576,A94,'01_Pyro-2024'!K$10:K$1048576) -> 0 | M94: 0
A95: 4150011 | B95: Petrol & oil office | C95: Petrol & oil for office (admin). | K95: =SUMIF('01_Pyro-2024'!$P$10:$P$1048576,$A95,'01_Pyro-2024'!J$10:J$1048576) -> 0 | L95: =SUMIF('01_Pyro-2024'!$P$10:$P$1048576,A95,'01_Pyro-2024'!K$10:K$1048576) -> 0 | M95: 0
A96: 4150012 | B96: Petrol & oil plants | C96: Petrol & oil for plants (operate). | K96: =SUMIF('01_Pyro-2024'!$P$10:$P$1048576,$A96,'01_Pyro-2024'!J$10:J$1048576) -> 0 | L96: =SUMIF('01_Pyro-2024'!$P$10:$P$1048576,A96,'01_Pyro-2024'!K$10:K$1048576) -> 0 | M96: 0
A97: 4150020 | B97: Motor Vehicle - Repairs & Maint. | C97: Only vehicles, no tools or maschines??? | D97: 25 | E97: No tax type Default | F97: 0 | G97: No | I97: 0 | K97: =SUMIF('01_Pyro-2024'!$P$10:$P$1048576,$A97,'01_Pyro-2024'!J$10:J$1048576) -> 0 | L97: =SUMIF('01_Pyro-2024'!$P$10:$P$1048576,A97,'01_Pyro-2024'!K$10:K$1048576) -> 0 | M97: 0
A98: 4150021 | B98: Repairs & maintain office | C98: Repairs & maintain for office (admin). | K98: =SUMIF('01_Pyro-2024'!$P$10:$P$1048576,$A98,'01_Pyro-2024'!J$10:J$1048576) -> 0 | L98: =SUMIF('01_Pyro-2024'!$P$10:$P$1048576,A98,'01_Pyro-2024'!K$10:K$1048576) -> 0 | M98: 0
A99: 4150022 | B99: Repairs & maintain plants | C99: Repairs & maintain for plants (operate). | K99: =SUMIF('01_Pyro-2024'!$P$10:$P$1048576,$A99,'01_Pyro-2024'!J$10:J$1048576) -> 0 | L99: =SUMIF('01_Pyro-2024'!$P$10:$P$1048576,A99,'01_Pyro-2024'!K$10:K$1048576) -> 0 | M99: 0
A100: 4150030 | B100: Motor Vehicle - Insurance & Licence | C100: Only vehicles, no tools or maschines??? | D100: 25 | E100: No tax type Default | F100: 0 | G100: No | I100: 0 | K100: =SUMIF('01_Pyro-2024'!$P$10:$P$1048576,$A100,'01_Pyro-2024'!J$10:J$1048576) -> 0 | L100: =SUMIF('01_Pyro-2024'!$P$10:$P$1048576,A100,'01_Pyro-2024'!K$10:K$1048576) -> 0 | M100: 0
A101: 4150031 | B101: Isurance & licence office | C101: Isurance & licence for office (admin). | K101: =SUMIF('01_Pyro-2024'!$P$10:$P$1048576,$A101,'01_Pyro-2024'!J$10:J$1048576) -> 0 | L101: =SUMIF('01_Pyro-2024'!$P$10:$P$1048576,A101,'01_Pyro-2024'!K$10:K$1048576) -> 0 | M101: 0
A102: 4150032 | B102: Isurance & licence plants | C102: Isurance & licence for plants (operate). | K102: =SUMIF('01_Pyro-2024'!$P$10:$P$1048576,$A102,'01_Pyro-2024'!J$10:J$1048576) -> 0 | L102: =SUMIF('01_Pyro-2024'!$P$10:$P$1048576,A102,'01_Pyro-2024'!K$10:K$1048576) -> 0 | M102: 0
A103: 4200000 | B103: Printing & Stationery | C103: Costs for purchase, services, no assets??? | D103: 25 | E103: No tax type Default | F103: 0 | G103: No | I103: 0 | K103: =SUMIF('01_Pyro-2024'!$P$10:$P$1048576,$A103,'01_Pyro-2024'!J$10:J$1048576) -> 0 | L103: =SUMIF('01_Pyro-2024'!$P$10:$P$1048576,A103,'01_Pyro-2024'!K$10:K$1048576) -> 0 | M103: 0
A104: 4210000 | B104: Pft/Loss on foreign exchange (Realised) | C104: Please specify with an sample??? | D104: 25 | E104: No tax type Default | F104: 0 | G104: No | I104: 0 | K104: =SUMIF('01_Pyro-2024'!$P$10:$P$1048576,$A104,'01_Pyro-2024'!J$10:J$1048576) -> 0 | L104: =SUMIF('01_Pyro-2024'!$P$10:$P$1048576,A104,'01_Pyro-2024'!K$10:K$1048576) -> 0 | M104: 0
A105: 4300000 | B105: Rent Paid | C105: Only if it is not part of a plant??? | D105: 25 | E105: No tax type Default | F105: 0 | G105: No | I105: 0 | K105: =SUMIF('01_Pyro-2024'!$P$10:$P$1048576,$A105,'01_Pyro-2024'!J$10:J$1048576) -> 0 | L105: =SUMIF('01_Pyro-2024'!$P$10:$P$1048576,A105,'01_Pyro-2024'!K$10:K$1048576) -> 0 | M105: 0
A106: 4350000 | B106: Repairs & Maintenance | C106: Only if it is not part of a plant??? | D106: 25 | E106: No tax type Default | F106: 0 | G106: No | I106: 0 | K106: =SUMIF('01_Pyro-2024'!$P$10:$P$1048576,$A106,'01_Pyro-2024'!J$10:J$1048576) -> 0 | L106: =SUMIF('01_Pyro-2024'!$P$10:$P$1048576,A106,'01_Pyro-2024'!K$10:K$1048576) -> 0 | M106: 0
A107: 4400000 | B107: Salaries & Wages | C107: Pre-accounting without sub-account??? | D107: 25 | E107: No tax type Default | F107: 0 | G107: No | I107: 0 | K107: =SUMIF('01_Pyro-2024'!$P$10:$P$1048576,$A107,'01_Pyro-2024'!J$10:J$1048576) -> 0 | L107: =SUMIF('01_Pyro-2024'!$P$10:$P$1048576,A107,'01_Pyro-2024'!K$10:K$1048576) -> -243245.35 | M107: -243245.35
A108: 4400010 | B108: Salaries and wages | C108: ??? | D108: 25 | E108: No tax type Default | F108: 0 | G108: No | I108: 0 | K108: =SUMIF('01_Pyro-2024'!$P$10:$P$1048576,$A108,'01_Pyro-2024'!J$10:J$1048576) -> 0 | L108: =SUMIF('01_Pyro-2024'!$P$10:$P$1048576,A108,'01_Pyro-2024'!K$10:K$1048576) -> 0 | M108: 0
A109: 4400020 | B109: Social security commission (msd & ecf) | C109: ??? | D109: 25 | E109: No tax type Default | F109: 0 | G109: No | I109: 0 | K109: =SUMIF('01_Pyro-2024'!$P$10:$P$1048576,$A109,'01_Pyro-2024'!J$10:J$1048576) -> 0 | L109: =SUMIF('01_Pyro-2024'!$P$10:$P$1048576,A109,'01_Pyro-2024'!K$10:K$1048576) -> -694.4 | M109: -694.4
A110: 4400030 | B110: NTA VET levy | C110: ??? | D110: 25 | E110: No tax type Default | F110: 0 | G110: No | I110: 0 | K110: =SUMIF('01_Pyro-2024'!$P$10:$P$1048576,$A110,'01_Pyro-2024'!J$10:J$1048576) -> 0 | L110: =SUMIF('01_Pyro-2024'!$P$10:$P$1048576,A110,'01_Pyro-2024'!K$10:K$1048576) -> 0 | M110: 0
A111: 4400040 | B111: Casual wages | C111: ??? | D111: 25 | E111: No tax type Default | F111: 0 | G111: No | I111: 0 | K111: =SUMIF('01_Pyro-2024'!$P$10:$P$1048576,$A111,'01_Pyro-2024'!J$10:J$1048576) -> 0 | L111: =SUMIF('01_Pyro-2024'!$P$10:$P$1048576,A111,'01_Pyro-2024'!K$10:K$1048576) -> 0 | M111: 0
A112: 4400050 | B112: Overtime 1.5 | C112: ??? | D112: 25 | E112: No tax type Default | F112: 0 | G112: No | I112: 0 | K112: =SUMIF('01_Pyro-2024'!$P$10:$P$1048576,$A112,'01_Pyro-2024'!J$10:J$1048576) -> 0 | L112: =SUMIF('01_Pyro-2024'!$P$10:$P$1048576,A112,'01_Pyro-2024'!K$10:K$1048576) -> 0 | M112: 0
A113: 4400060 | B113: Overtime 2 | C113: ??? | D113: 25 | E113: No tax type Default | F113: 0 | G113: No | I113: 0 | K113: =SUMIF('01_Pyro-2024'!$P$10:$P$1048576,$A113,'01_Pyro-2024'!J$10:J$1048576) -> 0 | L113: =SUMIF('01_Pyro-2024'!$P$10:$P$1048576,A113,'01_Pyro-2024'!K$10:K$1048576) -> 0 | M113: 0
A114: 4400070 | B114: Nightime | C114: ??? | D114: 25 | E114: No tax type Default | F114: 0 | G114: No | I114: 0 | K114: =SUMIF('01_Pyro-2024'!$P$10:$P$1048576,$A114,'01_Pyro-2024'!J$10:J$1048576) -> 0 | L114: =SUMIF('01_Pyro-2024'!$P$10:$P$1048576,A114,'01_Pyro-2024'!K$10:K$1048576) -> 0 | M114: 0
A115: 4400080 | B115: Travel Reimbursement | C115: ??? | D115: 25 | E115: No tax type Default | F115: 0 | G115: No | I115: 0 | K115: =SUMIF('01_Pyro-2024'!$P$10:$P$1048576,$A115,'01_Pyro-2024'!J$10:J$1048576) -> 0 | L115: =SUMIF('01_Pyro-2024'!$P$10:$P$1048576,A115,'01_Pyro-2024'!K$10:K$1048576) -> 0 | M115: 0
A116: 4400090 | B116: Leave payout | C116: ??? | D116: 25 | E116: No tax type Default | F116: 0 | G116: No | I116: 0 | K116: =SUMIF('01_Pyro-2024'!$P$10:$P$1048576,$A116,'01_Pyro-2024'!J$10:J$1048576) -> 0 | L116: =SUMIF('01_Pyro-2024'!$P$10:$P$1048576,A116,'01_Pyro-2024'!K$10:K$1048576) -> 0 | M116: 0
A117: 4400091 | B117: Notice Pay | C117: ??? | D117: 25 | E117: No tax type Default | F117: 0 | G117: No | I117: 0 | K117: =SUMIF('01_Pyro-2024'!$P$10:$P$1048576,$A117,'01_Pyro-2024'!J$10:J$1048576) -> 0 | L117: =SUMIF('01_Pyro-2024'!$P$10:$P$1048576,A117,'01_Pyro-2024'!K$10:K$1048576) -> 0 | M117: 0
A118: 4400100 | B118: Bonus | C118: ??? | D118: 25 | E118: No tax type Default | F118: 0 | G118: No | I118: 0 | K118: =SUMIF('01_Pyro-2024'!$P$10:$P$1048576,$A118,'01_Pyro-2024'!J$10:J$1048576) -> 0 | L118: =SUMIF('01_Pyro-2024'!$P$10:$P$1048576,A118,'01_Pyro-2024'!K$10:K$1048576) -> 0 | M118: 0
A119: 4400101 | B119: Sunday | C119: ??? | D119: 25 | E119: No tax type Default | F119: 0 | G119: No | I119: 0 | K119: =SUMIF('01_Pyro-2024'!$P$10:$P$1048576,$A119,'01_Pyro-2024'!J$10:J$1048576) -> 0 | L119: =SUMIF('01_Pyro-2024'!$P$10:$P$1048576,A119,'01_Pyro-2024'!K$10:K$1048576) -> 0 | M119: 0
A120: 4400102 | B120: Public Holiday | C120: ??? | D120: 25 | E120: No tax type Default | F120: 0 | G120: No | I120: 0 | K120: =SUMIF('01_Pyro-2024'!$P$10:$P$1048576,$A120,'01_Pyro-2024'!J$10:J$1048576) -> 0 | L120: =SUMIF('01_Pyro-2024'!$P$10:$P$1048576,A120,'01_Pyro-2024'!K$10:K$1048576) -> 0 | M120: 0
A121: 4450000 | B121: Staff Training | C121: E.g. first aid, fire training etc. | D121: 25 | E121: No tax type Default | F121: 0 | G121: No | I121: 0 | K121: =SUMIF('01_Pyro-2024'!$P$10:$P$1048576,$A121,'01_Pyro-2024'!J$10:J$1048576) -> 0 | L121: =SUMIF('01_Pyro-2024'!$P$10:$P$1048576,A121,'01_Pyro-2024'!K$10:K$1048576) -> 0 | M121: =K121+L121 -> 0
A122: 4500000 | B122: Staff Welfare | C122: Please specify with sub-account. | D122: 25 | E122: No tax type Default | F122: 0 | G122: No | I122: 0 | K122: =SUMIF('01_Pyro-2024'!$P$10:$P$1048576,$A122,'01_Pyro-2024'!J$10:J$1048576) -> 0 | L122: =SUMIF('01_Pyro-2024'!$P$10:$P$1048576,A122,'01_Pyro-2024'!K$10:K$1048576) -> 0 | M122: 0
A123: 4500010 | B123: Staff Shop Supply | C123: Only for shop account In/Out = 0.00??? | K123: =SUMIF('01_Pyro-2024'!$P$10:$P$1048576,$A123,'01_Pyro-2024'!J$10:J$1048576) -> 0 | L123: =SUMIF('01_Pyro-2024'!$P$10:$P$1048576,A123,'01_Pyro-2024'!K$10:K$1048576) -> -546 | M123: -546
A124: 4500020 | B124: Staff medical transport | C124: From the plants, taxi, contractor etc. | K124: =SUMIF('01_Pyro-2024'!$P$10:$P$1048576,$A124,'01_Pyro-2024'!J$10:J$1048576) -> 0 | L124: =SUMIF('01_Pyro-2024'!$P$10:$P$1048576,A124,'01_Pyro-2024'!K$10:K$1048576) -> 0 | M124: 0
A125: 4500030 | B125: Staff medication & treatment | C125: Costs of doctors and pharmacies. | K125: =SUMIF('01_Pyro-2024'!$P$10:$P$1048576,$A125,'01_Pyro-2024'!J$10:J$1048576) -> 0 | L125: =SUMIF('01_Pyro-2024'!$P$10:$P$1048576,A125,'01_Pyro-2024'!K$10:K$1048576) -> 0 | M125: 0
A126: 4500040 | B126: Staff first aid supply | C126: Supplies for the first aid kit. | K126: =SUMIF('01_Pyro-2024'!$P$10:$P$1048576,$A126,'01_Pyro-2024'!J$10:J$1048576) -> 0 | L126: =SUMIF('01_Pyro-2024'!$P$10:$P$1048576,A126,'01_Pyro-2024'!K$10:K$1048576) -> 0 | M126: 0
A127: 4500050 | B127: Staff engagement | C127: Drinks, food, documentation, reviews etc. | K127: =SUMIF('01_Pyro-2024'!$P$10:$P$1048576,$A127,'01_Pyro-2024'!J$10:J$1048576) -> 0 | L127: =SUMIF('01_Pyro-2024'!$P$10:$P$1048576,A127,'01_Pyro-2024'!K$10:K$1048576) -> 0 | M127: 0
A128: 4500060 | B128: Staff expert discussion | C128: Outreach services from experts. | K128: =SUMIF('01_Pyro-2024'!$P$10:$P$1048576,$A128,'01_Pyro-2024'!J$10:J$1048576) -> 0 | L128: =SUMIF('01_Pyro-2024'!$P$10:$P$1048576,A128,'01_Pyro-2024'!K$10:K$1048576) -> 0 | M128: 0
A129: 4500070 | B129: Staff gifts & wellbeing | C129: Gift, giveaways, goods for wellbeeing etc. | K129: =SUMIF('01_Pyro-2024'!$P$10:$P$1048576,$A129,'01_Pyro-2024'!J$10:J$1048576) -> 0 | L129: =SUMIF('01_Pyro-2024'!$P$10:$P$1048576,A129,'01_Pyro-2024'!K$10:K$1048576) -> 0 | M129: 0
A130: 4500080 | B130: Staff others | C130: Any other costs, e.g. taxi, internet etc. | K130: =SUMIF('01_Pyro-2024'!$P$10:$P$1048576,$A130,'01_Pyro-2024'!J$10:J$1048576) -> 0 | L130: =SUMIF('01_Pyro-2024'!$P$10:$P$1048576,A130,'01_Pyro-2024'!K$10:K$1048576) -> 0 | M130: 0
A131: 4550000 | B131: Subscriptions licenses & membership fee | C131: Costs for ministries, certificates etc. | D131: 25 | E131: No tax type Default | F131: 0 | G131: No | I131: 0 | K131: =SUMIF('01_Pyro-2024'!$P$10:$P$1048576,$A131,'01_Pyro-2024'!J$10:J$1048576) -> 0 | L131: =SUMIF('01_Pyro-2024'!$P$10:$P$1048576,A131,'01_Pyro-2024'!K$10:K$1048576) -> 0 | M131: 0
A132: 4600000 | B132: Telephone & Fax | C132: Please specify with sub-account. | D132: 25 | E132: No tax type Default | F132: 0 | G132: No | I132: 0 | K132: =SUMIF('01_Pyro-2024'!$P$10:$P$1048576,$A132,'01_Pyro-2024'!J$10:J$1048576) -> 0 | L132: =SUMIF('01_Pyro-2024'!$P$10:$P$1048576,A132,'01_Pyro-2024'!K$10:K$1048576) -> 0 | M132: 0
A133: 4600011 | B133: Telephone & fax office | C133: Telephone & fax for office (admin). | K133: =SUMIF('01_Pyro-2024'!$P$10:$P$1048576,$A133,'01_Pyro-2024'!J$10:J$1048576) -> 0 | L133: =SUMIF('01_Pyro-2024'!$P$10:$P$1048576,A133,'01_Pyro-2024'!K$10:K$1048576) -> 0 | M133: 0
A134: 4600012 | B134: Telephone & fax plants | C134: Telephone & fax for plants (operate). | K134: =SUMIF('01_Pyro-2024'!$P$10:$P$1048576,$A134,'01_Pyro-2024'!J$10:J$1048576) -> 0 | L134: =SUMIF('01_Pyro-2024'!$P$10:$P$1048576,A134,'01_Pyro-2024'!K$10:K$1048576) -> 0 | M134: 0
A135: 4600021 | B135: Internet & sat office | C135: Online contract for office (admin). | K135: =SUMIF('01_Pyro-2024'!$P$10:$P$1048576,$A135,'01_Pyro-2024'!J$10:J$1048576) -> 0 | L135: =SUMIF('01_Pyro-2024'!$P$10:$P$1048576,A135,'01_Pyro-2024'!K$10:K$1048576) -> 0 | M135: 0
A136: 4600022 | B136: Internet & sat plants | C136: Online contracts for plants (operate). | K136: =SUMIF('01_Pyro-2024'!$P$10:$P$1048576,$A136,'01_Pyro-2024'!J$10:J$1048576) -> 0 | L136: =SUMIF('01_Pyro-2024'!$P$10:$P$1048576,A136,'01_Pyro-2024'!K$10:K$1048576) -> 0 | M136: 0
A137: 4650000 | B137: Travel & Accommodation | C137: Please specify with sub-account. | D137: 25 | E137: No tax type Default | F137: 0 | G137: No | I137: 0 | K137: =SUMIF('01_Pyro-2024'!$P$10:$P$1048576,$A137,'01_Pyro-2024'!J$10:J$1048576) -> 0 | L137: =SUMIF('01_Pyro-2024'!$P$10:$P$1048576,A137,'01_Pyro-2024'!K$10:K$1048576) -> 0 | M137: 0
A138: 4650001 | B138: Travel & accomodate office | C138: Travel & accomodate for office (admin). | K138: =SUMIF('01_Pyro-2024'!$P$10:$P$1048576,$A138,'01_Pyro-2024'!J$10:J$1048576) -> 0 | L138: =SUMIF('01_Pyro-2024'!$P$10:$P$1048576,A138,'01_Pyro-2024'!K$10:K$1048576) -> -4071 | M138: -4071
A139: 4650002 | B139: Travel & accomodate plants | C139: Travel & accomodate for plants (operate). | K139: =SUMIF('01_Pyro-2024'!$P$10:$P$1048576,$A139,'01_Pyro-2024'!J$10:J$1048576) -> 0 | L139: =SUMIF('01_Pyro-2024'!$P$10:$P$1048576,A139,'01_Pyro-2024'!K$10:K$1048576) -> -2500 | M139: -2500
A140: 4700000 | B140: Security | C140: Please specify with sub-account. | D140: 0 | F140: 0 | G140: No | I140: 0 | K140: =SUMIF('01_Pyro-2024'!$P$10:$P$1048576,$A140,'01_Pyro-2024'!J$10:J$1048576) -> 0 | L140: =SUMIF('01_Pyro-2024'!$P$10:$P$1048576,A140,'01_Pyro-2024'!K$10:K$1048576) -> 0 | M140: 0
A141: 4700001 | B141: Security purchase and service office | C141: Security purchase, service for office (admin). | K141: =SUMIF('01_Pyro-2024'!$P$10:$P$1048576,$A141,'01_Pyro-2024'!J$10:J$1048576) -> 0 | L141: =SUMIF('01_Pyro-2024'!$P$10:$P$1048576,A141,'01_Pyro-2024'!K$10:K$1048576) -> -57270 | M141: -57270
A142: 4700002 | B142: Security purchase and service plants | C142: Security purchase, service plants (operate). | K142: =SUMIF('01_Pyro-2024'!$P$10:$P$1048576,$A142,'01_Pyro-2024'!J$10:J$1048576) -> 0 | L142: =SUMIF('01_Pyro-2024'!$P$10:$P$1048576,A142,'01_Pyro-2024'!K$10:K$1048576) -> 0 | M142: 0
A143: Financial Category : I30 - Tax
A144: 4800000 | B144: Normal Taxation | D144: 30 | E144: No tax type Default | F144: 0 | G144: No | I144: 0 | K144: =SUMIF('01_Pyro-2024'!$P$10:$P$1048576,$A144,'01_Pyro-2024'!J$10:J$1048576) -> 0 | L144: =SUMIF('01_Pyro-2024'!$P$10:$P$1048576,A144,'01_Pyro-2024'!K$10:K$1048576) -> 0 | M144: =K144+L144 -> 0
A145: 4820000 | B145: Deferred Taxation | D145: 30 | E145: No tax type Default | F145: 0 | G145: No | I145: 0 | K145: =SUMIF('01_Pyro-2024'!$P$10:$P$1048576,$A145,'01_Pyro-2024'!J$10:J$1048576) -> 0 | L145: =SUMIF('01_Pyro-2024'!$P$10:$P$1048576,A145,'01_Pyro-2024'!K$10:K$1048576) -> 0 | M145: 0
A146: Financial Category : I35 - Dividends
A147: 4850000 | B147: Dividends Declared / Paid | D147: 35 | E147: No tax type Default | F147: 0 | G147: No | I147: 0 | K147: =SUMIF('01_Pyro-2024'!$P$10:$P$1048576,$A147,'01_Pyro-2024'!J$10:J$1048576) -> 0 | L147: =SUMIF('01_Pyro-2024'!$P$10:$P$1048576,A147,'01_Pyro-2024'!K$10:K$1048576) -> 0 | M147: =K147+L147 -> 0
A148: Financial Category : B10 - Share Capital
A149: 5100000 | B149: Share Capital | C149: Necessary for pre-accounting??? | D149: 40 | E149: No tax type Default | F149: 0 | G149: No | I149: 0 | K149: =SUMIF('01_Pyro-2024'!$P$10:$P$1048576,$A149,'01_Pyro-2024'!J$10:J$1048576) -> 0 | L149: =SUMIF('01_Pyro-2024'!$P$10:$P$1048576,A149,'01_Pyro-2024'!K$10:K$1048576) -> 0 | M149: =K149+L149 -> 0
A150: Financial Category : B15 - Retained Income
A151: 5200000 | B151: Retained Income / (Accumulated Loss) | C151: Necessary for pre-accounting??? | D151: 45 | E151: No tax type Default | F151: 0 | G151: No | I151: 0 | K151: =SUMIF('01_Pyro-2024'!$P$10:$P$1048576,$A151,'01_Pyro-2024'!J$10:J$1048576) -> 0 | L151: =SUMIF('01_Pyro-2024'!$P$10:$P$1048576,A151,'01_Pyro-2024'!K$10:K$1048576) -> 0 | M151: =K151+L151 -> 0
A152: Financial Category : B20 - Shareholders Loan
A153: 5400000 | B153: Share Holders/ Directors Loans | C153: Necessary for pre-accounting??? | D153: 50 | E153: No tax type Default | F153: 0 | G153: No | I153: 0 | K153: =SUMIF('01_Pyro-2024'!$P$10:$P$1048576,$A153,'01_Pyro-2024'!J$10:J$1048576) -> 0 | L153: =SUMIF('01_Pyro-2024'!$P$10:$P$1048576,A153,'01_Pyro-2024'!K$10:K$1048576) -> 0 | M153: =K153+L153 -> 0
A154: 5400010 | B154: Shareholder Loan: Pyro CCS GmbH | C154: Necessary for pre-accounting??? | D154: 50 | E154: No tax type Default | F154: 0 | G154: No | I154: 0 | K154: =SUMIF('01_Pyro-2024'!$P$10:$P$1048576,$A154,'01_Pyro-2024'!J$10:J$1048576) -> 0 | L154: =SUMIF('01_Pyro-2024'!$P$10:$P$1048576,A154,'01_Pyro-2024'!K$10:K$1048576) -> 0 | M154: 0
A155: 5400020 | B155: Shareholder Loan: Magnifyy GmbH | C155: Necessary for pre-accounting??? | D155: 50 | E155: No tax type Default | F155: 0 | G155: No | I155: 0 | K155: =SUMIF('01_Pyro-2024'!$P$10:$P$1048576,$A155,'01_Pyro-2024'!J$10:J$1048576) -> 0 | L155: =SUMIF('01_Pyro-2024'!$P$10:$P$1048576,A155,'01_Pyro-2024'!K$10:K$1048576) -> 0 | M155: 0
A156: 5400030 | B156: Shareholders Loan: Mr. H. Höpker | C156: Necessary for pre-accounting??? | D156: 50 | E156: No tax type Default | F156: 0 | G156: No | I156: 0 | K156: =SUMIF('01_Pyro-2024'!$P$10:$P$1048576,$A156,'01_Pyro-2024'!J$10:J$1048576) -> 0 | L156: =SUMIF('01_Pyro-2024'!$P$10:$P$1048576,A156,'01_Pyro-2024'!K$10:K$1048576) -> 0 | M156: 0
A157: 5410000 | B157: Magnifyy GmbH | C157: Necessary for pre-accounting??? | D157: 0 | F157: 0 | G157: No | I157: 0 | K157: =SUMIF('01_Pyro-2024'!$P$10:$P$1048576,$A157,'01_Pyro-2024'!J$10:J$1048576) -> 0 | L157: =SUMIF('01_Pyro-2024'!$P$10:$P$1048576,A157,'01_Pyro-2024'!K$10:K$1048576) -> 0 | M157: 0
A158: 5420000 | B158: PryoCCS GmbH | C158: Necessary for pre-accounting??? | D158: 0 | F158: 0 | G158: No | I158: 0 | K158: =SUMIF('01_Pyro-2024'!$P$10:$P$1048576,$A158,'01_Pyro-2024'!J$10:J$1048576) -> 0 | L158: =SUMIF('01_Pyro-2024'!$P$10:$P$1048576,A158,'01_Pyro-2024'!K$10:K$1048576) -> 0 | M158: 0
A159: Financial Category : B25 - Long Term Borrowings
A160: 5500000 | B160: Long Term Liabilities: PyroCCS GmbH | C160: Necessary for pre-accounting??? | D160: 55 | E160: No tax type Default | F160: 0 | G160: No | I160: 0 | K160: =SUMIF('01_Pyro-2024'!$P$10:$P$1048576,$A160,'01_Pyro-2024'!J$10:J$1048576) -> 0 | L160: =SUMIF('01_Pyro-2024'!$P$10:$P$1048576,A160,'01_Pyro-2024'!K$10:K$1048576) -> 0 | M160: =K160+L160 -> 0
A161: 5500001 | B161: Short term Liabilities: Loan PyroCCS Gmb | C161: Necessary for pre-accounting??? | D161: 55 | E161: No tax type Default | F161: 0 | G161: No | I161: 0 | K161: =SUMIF('01_Pyro-2024'!$P$10:$P$1048576,$A161,'01_Pyro-2024'!J$10:J$1048576) -> 0 | L161: =SUMIF('01_Pyro-2024'!$P$10:$P$1048576,A161,'01_Pyro-2024'!K$10:K$1048576) -> 0 | M161: 0
A162: 5500002 | B162: Finance Charges: Loan PyroCCS Gmb | C162: Necessary for pre-accounting??? | D162: 55 | E162: No tax type Default | F162: 0 | G162: Yes | I162: 0 | K162: =SUMIF('01_Pyro-2024'!$P$10:$P$1048576,$A162,'01_Pyro-2024'!J$10:J$1048576) -> 0 | L162: =SUMIF('01_Pyro-2024'!$P$10:$P$1048576,A162,'01_Pyro-2024'!K$10:K$1048576) -> 0 | M162: 0
A163: Financial Category : B30 - Other Long Term Liabilities
A164: 5600000 | B164: Instalment Sale Creditors | D164: 58 | E164: No tax type Default | F164: 0 | G164: No | I164: 0 | K164: =SUMIF('01_Pyro-2024'!$P$10:$P$1048576,$A164,'01_Pyro-2024'!J$10:J$1048576) -> 0 | L164: =SUMIF('01_Pyro-2024'!$P$10:$P$1048576,A164,'01_Pyro-2024'!K$10:K$1048576) -> 0 | M164: =K164+L164 -> 0
A165: 5700000 | B165: Deferred Taxation Provision | D165: 58 | E165: No tax type Default | F165: 0 | G165: No | I165: 0 | K165: =SUMIF('01_Pyro-2024'!$P$10:$P$1048576,$A165,'01_Pyro-2024'!J$10:J$1048576) -> 0 | L165: =SUMIF('01_Pyro-2024'!$P$10:$P$1048576,A165,'01_Pyro-2024'!K$10:K$1048576) -> 0 | M165: 0
A166: Financial Category : B35 - Fixed Assets
A167: 6100000 | B167: Leasehold Improvements - Net Value | D167: 60 | E167: No tax type Default | F167: 0 | G167: No | I167: 0 | K167: =SUMIF('01_Pyro-2024'!$P$10:$P$1048576,$A167,'01_Pyro-2024'!J$10:J$1048576) -> 0 | L167: =SUMIF('01_Pyro-2024'!$P$10:$P$1048576,A167,'01_Pyro-2024'!K$10:K$1048576) -> 0 | M167: =K167+L167 -> 0
A168: 6100010 | B168: Leasehold Improvements - @ Cost | C168: Please specify with an sample??? | D168: 60 | E168: No tax type Default | F168: 0 | G168: No | I168: 0 | K168: =SUMIF('01_Pyro-2024'!$P$10:$P$1048576,$A168,'01_Pyro-2024'!J$10:J$1048576) -> 0 | L168: =SUMIF('01_Pyro-2024'!$P$10:$P$1048576,A168,'01_Pyro-2024'!K$10:K$1048576) -> 0 | M168: 0
A169: 6100020 | B169: Leasehold Improvements - Accum Depre | C169: Necessary for pre-accounting??? | D169: 60 | E169: No tax type Default | F169: 0 | G169: No | I169: 0 | K169: =SUMIF('01_Pyro-2024'!$P$10:$P$1048576,$A169,'01_Pyro-2024'!J$10:J$1048576) -> 0 | L169: =SUMIF('01_Pyro-2024'!$P$10:$P$1048576,A169,'01_Pyro-2024'!K$10:K$1048576) -> 0 | M169: 0
A170: 6150000 | B170: Plant - Net Value | D170: 61 | E170: No tax type Default | F170: 0 | G170: No | I170: 0 | K170: =SUMIF('01_Pyro-2024'!$P$10:$P$1048576,$A170,'01_Pyro-2024'!J$10:J$1048576) -> 0 | L170: =SUMIF('01_Pyro-2024'!$P$10:$P$1048576,A170,'01_Pyro-2024'!K$10:K$1048576) -> 0 | M170: 0
A171: 6150010 | B171: Plant - @ Cost | C171: Please specify with an sample??? | D171: 61 | E171: No tax type Default | F171: 0 | G171: No | I171: 0 | K171: =SUMIF('01_Pyro-2024'!$P$10:$P$1048576,$A171,'01_Pyro-2024'!J$10:J$1048576) -> 0 | L171: =SUMIF('01_Pyro-2024'!$P$10:$P$1048576,A171,'01_Pyro-2024'!K$10:K$1048576) -> 0 | M171: 0
A172: 6150020 | B172: Plant - Accum Depre | C172: Necessary for pre-accounting??? | D172: 61 | E172: No tax type Default | F172: 0 | G172: No | I172: 0 | K172: =SUMIF('01_Pyro-2024'!$P$10:$P$1048576,$A172,'01_Pyro-2024'!J$10:J$1048576) -> 0 | L172: =SUMIF('01_Pyro-2024'!$P$10:$P$1048576,A172,'01_Pyro-2024'!K$10:K$1048576) -> 0 | M172: 0
A173: 6200000 | B173: Motor Vehicles - Net Value | D173: 62 | E173: No tax type Default | F173: 0 | G173: No | I173: 0 | K173: =SUMIF('01_Pyro-2024'!$P$10:$P$1048576,$A173,'01_Pyro-2024'!J$10:J$1048576) -> 0 | L173: =SUMIF('01_Pyro-2024'!$P$10:$P$1048576,A173,'01_Pyro-2024'!K$10:K$1048576) -> 0 | M173: 0
A174: 6200010 | B174: Motor Vehicles - @ Cost | C174: Please specify with an sample??? | D174: 62 | E174: No tax type Default | F174: 0 | G174: No | I174: 0 | K174: =SUMIF('01_Pyro-2024'!$P$10:$P$1048576,$A174,'01_Pyro-2024'!J$10:J$1048576) -> 0 | L174: =SUMIF('01_Pyro-2024'!$P$10:$P$1048576,A174,'01_Pyro-2024'!K$10:K$1048576) -> 0 | M174: 0
A175: 6200020 | B175: Motor Vehicles - Accum Depre | C175: Necessary for pre-accounting??? | D175: 62 | E175: No tax type Default | F175: 0 | G175: No | I175: 0 | K175: =SUMIF('01_Pyro-2024'!$P$10:$P$1048576,$A175,'01_Pyro-2024'!J$10:J$1048576) -> 0 | L175: =SUMIF('01_Pyro-2024'!$P$10:$P$1048576,A175,'01_Pyro-2024'!K$10:K$1048576) -> 0 | M175: 0
A176: 6250000 | B176: Computer Equipment - Net Value | D176: 63 | E176: No tax type Default | F176: 0 | G176: No | I176: 0 | K176: =SUMIF('01_Pyro-2024'!$P$10:$P$1048576,$A176,'01_Pyro-2024'!J$10:J$1048576) -> 0 | L176: =SUMIF('01_Pyro-2024'!$P$10:$P$1048576,A176,'01_Pyro-2024'!K$10:K$1048576) -> 0 | M176: 0
A177: 6250010 | B177: Computer Equipment - @ Cost | C177: Please specify with an sample??? | D177: 63 | E177: No tax type Default | F177: 0 | G177: No | I177: 0 | K177: =SUMIF('01_Pyro-2024'!$P$10:$P$1048576,$A177,'01_Pyro-2024'!J$10:J$1048576) -> 0 | L177: =SUMIF('01_Pyro-2024'!$P$10:$P$1048576,A177,'01_Pyro-2024'!K$10:K$1048576) -> 0 | M177: 0
A178: 6250020 | B178: Computer Equipment - Accum Depre | C178: Necessary for pre-accounting??? | D178: 63 | E178: No tax type Default | F178: 0 | G178: No | I178: 0 | K178: =SUMIF('01_Pyro-2024'!$P$10:$P$1048576,$A178,'01_Pyro-2024'!J$10:J$1048576) -> 0 | L178: =SUMIF('01_Pyro-2024'!$P$10:$P$1048576,A178,'01_Pyro-2024'!K$10:K$1048576) -> 0 | M178: 0
A179: 6300000 | B179: Office Equipment - Net Value | D179: 64 | E179: No tax type Default | F179: 0 | G179: No | I179: 0 | K179: =SUMIF('01_Pyro-2024'!$P$10:$P$1048576,$A179,'01_Pyro-2024'!J$10:J$1048576) -> 0 | L179: =SUMIF('01_Pyro-2024'!$P$10:$P$1048576,A179,'01_Pyro-2024'!K$10:K$1048576) -> 0 | M179: 0
A180: 6300010 | B180: Office Equipment - @ Cost | C180: Please specify with an sample??? | D180: 64 | E180: No tax type Default | F180: 0 | G180: No | I180: 0 | K180: =SUMIF('01_Pyro-2024'!$P$10:$P$1048576,$A180,'01_Pyro-2024'!J$10:J$1048576) -> 0 | L180: =SUMIF('01_Pyro-2024'!$P$10:$P$1048576,A180,'01_Pyro-2024'!K$10:K$1048576) -> 0 | M180: 0
A181: 6300020 | B181: Office Equipment - Accum Depre | C181: Necessary for pre-accounting??? | D181: 64 | E181: No tax type Default | F181: 0 | G181: No | I181: 0 | K181: =SUMIF('01_Pyro-2024'!$P$10:$P$1048576,$A181,'01_Pyro-2024'!J$10:J$1048576) -> 0 | L181: =SUMIF('01_Pyro-2024'!$P$10:$P$1048576,A181,'01_Pyro-2024'!K$10:K$1048576) -> 0 | M181: 0
A182: 6350000 | B182: Furniture & Fittings - Net value | D182: 65 | E182: No tax type Default | F182: 0 | G182: No | I182: 0 | K182: =SUMIF('01_Pyro-2024'!$P$10:$P$1048576,$A182,'01_Pyro-2024'!J$10:J$1048576) -> 0 | L182: =SUMIF('01_Pyro-2024'!$P$10:$P$1048576,A182,'01_Pyro-2024'!K$10:K$1048576) -> 0 | M182: 0
A183: 6350010 | B183: Furniture & Fittings - @ Cost | C183: Please specify with an sample??? | D183: 65 | E183: No tax type Default | F183: 0 | G183: No | I183: 0 | K183: =SUMIF('01_Pyro-2024'!$P$10:$P$1048576,$A183,'01_Pyro-2024'!J$10:J$1048576) -> 0 | L183: =SUMIF('01_Pyro-2024'!$P$10:$P$1048576,A183,'01_Pyro-2024'!K$10:K$1048576) -> 0 | M183: 0
A184: 6350020 | B184: Furniture & Fittings - Accum Depre | C184: Necessary for pre-accounting??? | D184: 65 | E184: No tax type Default | F184: 0 | G184: No | I184: 0 | K184: =SUMIF('01_Pyro-2024'!$P$10:$P$1048576,$A184,'01_Pyro-2024'!J$10:J$1048576) -> 0 | L184: =SUMIF('01_Pyro-2024'!$P$10:$P$1048576,A184,'01_Pyro-2024'!K$10:K$1048576) -> 0 | M184: 0
A185: 6600000 | B185: Machinery and equipment - Net Value | D185: 66 | E185: No tax type Default | F185: 0 | G185: No | I185: 0 | K185: =SUMIF('01_Pyro-2024'!$P$10:$P$1048576,$A185,'01_Pyro-2024'!J$10:J$1048576) -> 0 | L185: =SUMIF('01_Pyro-2024'!$P$10:$P$1048576,A185,'01_Pyro-2024'!K$10:K$1048576) -> 0 | M185: 0
A186: 6600010 | B186: Machinery and equipment - @ Cost | C186: Please specify with an sample??? | D186: 66 | E186: No tax type Default | F186: 0 | G186: No | I186: 0 | K186: =SUMIF('01_Pyro-2024'!$P$10:$P$1048576,$A186,'01_Pyro-2024'!J$10:J$1048576) -> 0 | L186: =SUMIF('01_Pyro-2024'!$P$10:$P$1048576,A186,'01_Pyro-2024'!K$10:K$1048576) -> 0 | M186: 0
A187: 6600020 | B187: Machinery and equipment - Accum Depre | C187: Necessary for pre-accounting??? | D187: 66 | E187: No tax type Default | F187: 0 | G187: No | I187: 0 | K187: =SUMIF('01_Pyro-2024'!$P$10:$P$1048576,$A187,'01_Pyro-2024'!J$10:J$1048576) -> 0 | L187: =SUMIF('01_Pyro-2024'!$P$10:$P$1048576,A187,'01_Pyro-2024'!K$10:K$1048576) -> 0 | M187: 0
A188: Financial Category : B40 - Investments
A189: 7100000 | B189: Investments | D189: 70 | E189: No tax type Default | F189: 0 | G189: No | I189: 0 | K189: =SUMIF('01_Pyro-2024'!$P$10:$P$1048576,$A189,'01_Pyro-2024'!J$10:J$1048576) -> 0 | L189: =SUMIF('01_Pyro-2024'!$P$10:$P$1048576,A189,'01_Pyro-2024'!K$10:K$1048576) -> 0 | M189: =K189+L189 -> 0
A190: 7200000 | B190: Shares in Subsidiary Companies | D190: 70 | E190: No tax type Default | F190: 0 | G190: No | I190: 0 | K190: =SUMIF('01_Pyro-2024'!$P$10:$P$1048576,$A190,'01_Pyro-2024'!J$10:J$1048576) -> 0 | L190: =SUMIF('01_Pyro-2024'!$P$10:$P$1048576,A190,'01_Pyro-2024'!K$10:K$1048576) -> 0 | M190: 0
A191: 7400000 | B191: Loans To / (From) Subsidiary Co's | D191: 70 | E191: No tax type Default | F191: 0 | G191: No | I191: 0 | K191: =SUMIF('01_Pyro-2024'!$P$10:$P$1048576,$A191,'01_Pyro-2024'!J$10:J$1048576) -> 0 | L191: =SUMIF('01_Pyro-2024'!$P$10:$P$1048576,A191,'01_Pyro-2024'!K$10:K$1048576) -> 0 | M191: 0
A192: Financial Category : B45 - Other Fixed Assets
A193: 7000000 | B193: Goodwill / Intangible Assets | D193: 71 | E193: No tax type Default | F193: 0 | G193: No | I193: 0 | K193: =SUMIF('01_Pyro-2024'!$P$10:$P$1048576,$A193,'01_Pyro-2024'!J$10:J$1048576) -> 0 | L193: =SUMIF('01_Pyro-2024'!$P$10:$P$1048576,A193,'01_Pyro-2024'!K$10:K$1048576) -> 0 | M193: =K193+L193 -> 0
A194: Financial Category : B50 - Inventory
A195: 7500000 | B195: Inventory Control - Raw Materials | C195: Please specify with an sample??? | D195: 72 | E195: No tax type Default | F195: 0 | G195: No | I195: 0 | K195: =SUMIF('01_Pyro-2024'!$P$10:$P$1048576,$A195,'01_Pyro-2024'!J$10:J$1048576) -> 0 | L195: =SUMIF('01_Pyro-2024'!$P$10:$P$1048576,A195,'01_Pyro-2024'!K$10:K$1048576) -> 0 | M195: =K195+L195 -> 0
A196: 7600000 | B196: Construction Costs NOG Verder Albert Ste | C196: Necessary for pre-accounting??? | D196: 72 | E196: No tax type Default | F196: 0 | G196: No | I196: 0 | K196: =SUMIF('01_Pyro-2024'!$P$10:$P$1048576,$A196,'01_Pyro-2024'!J$10:J$1048576) -> 0 | L196: =SUMIF('01_Pyro-2024'!$P$10:$P$1048576,A196,'01_Pyro-2024'!K$10:K$1048576) -> 0 | M196: 0
A197: 7700000 | B197: Inventory Control - Finished Goods | C197: Please specify with an sample??? | D197: 72 | E197: No tax type Default | F197: 0 | G197: No | I197: 0 | K197: =SUMIF('01_Pyro-2024'!$P$10:$P$1048576,$A197,'01_Pyro-2024'!J$10:J$1048576) -> 0 | L197: =SUMIF('01_Pyro-2024'!$P$10:$P$1048576,A197,'01_Pyro-2024'!K$10:K$1048576) -> 0 | M197: 0
A198: 7800000 | B198: Construction cost: WAL -DKA | C198: Necessary for pre-accounting??? | D198: 72 | E198: No tax type Default | F198: 0 | G198: No | I198: 0 | K198: =SUMIF('01_Pyro-2024'!$P$10:$P$1048576,$A198,'01_Pyro-2024'!J$10:J$1048576) -> 0 | L198: =SUMIF('01_Pyro-2024'!$P$10:$P$1048576,A198,'01_Pyro-2024'!K$10:K$1048576) -> 0 | M198: 0
A199: Financial Category : B55 - Accounts Receivable
A200: 8000000 | B200: Customer Control Account | C200: Necessary for pre-accounting??? | D200: 74 | E200: No tax type Default | F200: 0 | G200: No | I200: 0 | K200: =SUMIF('01_Pyro-2024'!$P$10:$P$1048576,$A200,'01_Pyro-2024'!J$10:J$1048576) -> 0 | L200: =SUMIF('01_Pyro-2024'!$P$10:$P$1048576,A200,'01_Pyro-2024'!K$10:K$1048576) -> 0 | M200: =K200+L200 -> 0
A201: 8050000 | B201: Refunds due from Suppliers | C201: Necessary for pre-accounting??? | D201: 74 | E201: No tax type Default | F201: 0 | G201: No | I201: 0 | K201: =SUMIF('01_Pyro-2024'!$P$10:$P$1048576,$A201,'01_Pyro-2024'!J$10:J$1048576) -> 0 | L201: =SUMIF('01_Pyro-2024'!$P$10:$P$1048576,A201,'01_Pyro-2024'!K$10:K$1048576) -> 0 | M201: 0
A202: Financial Category : B60 - Bank
A203: 8400000 | B203: Bank BIC Namibia Ltd - 95865211001 | C203: Necessary for pre-accounting??? | D203: 76 | E203: No tax type Default | F203: 0 | G203: No | I203: 0 | K203: =SUMIF('01_Pyro-2024'!$P$10:$P$1048576,$A203,'01_Pyro-2024'!J$10:J$1048576) -> 0 | L203: =SUMIF('01_Pyro-2024'!$P$10:$P$1048576,A203,'01_Pyro-2024'!K$10:K$1048576) -> 0 | M203: =K203+L203 -> 0
A204: 8410000 | B204: Cash on Hand | C204: Necessary for pre-accounting??? | D204: 76 | E204: No tax type Default | F204: 0 | G204: No | I204: 0 | K204: =SUMIF('01_Pyro-2024'!$P$10:$P$1048576,$A204,'01_Pyro-2024'!J$10:J$1048576) -> 0 | L204: =SUMIF('01_Pyro-2024'!$P$10:$P$1048576,A204,'01_Pyro-2024'!K$10:K$1048576) -> 0 | M204: 0
... 23 more rows
